[Event "Early-Titled-Tuesday-Blitz-March-26-2024"]
[Site "Chess.com"]
[Date "2024.03.26"]
[Round "8"]
[White "Knightmare1014"]
[Black "ilushka"]
[Result "1-0"]
[WhiteElo "2349"]
[BlackElo "2490"]
[TimeControl "180+1"]
[EndTime "9:21:28 PDT"]
[Termination "Knightmare1014 won by resignation"]

1. e4 {[%clk 0:03:00.9]} 1... e5 {[%clk 0:03:00.5]} 2. Nf3 {[%clk 0:02:59.8]}
2... Nc6 {[%clk 0:03:01.1]} 3. Bb5 {[%clk 0:02:58.8]} 3... Nf6 {[%clk
0:03:01.4]} 4. O-O {[%clk 0:02:57.8]} 4... Nxe4 {[%clk 0:03:01.9]} 5. Re1 {[%clk
0:02:40.4]} 5... Nd6 {[%clk 0:03:02.1]} 6. Nxe5 {[%clk 0:02:33.1]} 6... Be7
{[%clk 0:03:00.5]} 7. Bf1 {[%clk 0:02:25.9]} 7... Nxe5 {[%clk 0:02:58.8]} 8.
Rxe5 {[%clk 0:02:21.9]} 8... O-O {[%clk 0:02:59.2]} 9. d4 {[%clk 0:02:21.5]}
9... Bf6 {[%clk 0:02:59.2]} 10. Re1 {[%clk 0:02:20.4]} 10... Nf5 {[%clk
0:02:59.3]} 11. c3 {[%clk 0:02:07.7]} 11... d5 {[%clk 0:02:58.4]} 12. h3 {[%clk
0:02:06.1]} 12... a5 {[%clk 0:02:49.7]} 13. a4 {[%clk 0:02:03]} 13... Bd7 {[%clk
0:02:45.6]} 14. Bf4 {[%clk 0:02:02.4]} 14... c6 {[%clk 0:02:38.1]} 15. Nd2
{[%clk 0:01:59.2]} 15... Qb6 {[%clk 0:02:36.5]} 16. Qc2 {[%clk 0:01:56.9]} 16...
Rfe8 {[%clk 0:02:34.5]} 17. Bd3 {[%clk 0:01:55.6]} 17... g6 {[%clk 0:02:32.6]}
18. Nf3 {[%clk 0:01:47.6]} 18... Rxe1+ {[%clk 0:02:14.8]} 19. Rxe1 {[%clk
0:01:46.7]} 19... Re8 {[%clk 0:02:15]} 20. Rxe8+ {[%clk 0:01:43.9]} 20... Bxe8
{[%clk 0:02:15.9]} 21. Bxf5 {[%clk 0:01:42.5]} 21... gxf5 {[%clk 0:02:16.8]} 22.
Qxf5 {[%clk 0:01:41.1]} 22... Bg7 {[%clk 0:02:14.8]} 23. Qc8 {[%clk 0:01:29.9]}
23... Kf8 {[%clk 0:01:56.3]} 24. Bd6+ {[%clk 0:01:29.8]} 1-0

[Event "Early-Titled-Tuesday-Blitz-March-26-2024"]
[Site "Chess.com"]
[Date "2024.03.26"]
[Round "8"]
[White "Marielchessy"]
[Black "pfalcon1949"]
[Result "1-0"]
[WhiteElo "2343"]
[BlackElo "2059"]
[TimeControl "180+1"]
[EndTime "9:21:44 PDT"]
[Termination "Marielchessy won by checkmate"]

1. e4 {[%clk 0:02:57.5]} 1... e6 {[%clk 0:02:59.9]} 2. d4 {[%clk 0:02:57.2]}
2... d5 {[%clk 0:03:00]} 3. Nc3 {[%clk 0:02:57.9]} 3... Bb4 {[%clk 0:02:59.6]}
4. e5 {[%clk 0:02:58.1]} 4... Ne7 {[%clk 0:02:58.9]} 5. a3 {[%clk 0:02:58.6]}
5... Bxc3+ {[%clk 0:02:59.1]} 6. bxc3 {[%clk 0:02:58.8]} 6... c5 {[%clk
0:02:59.7]} 7. Qg4 {[%clk 0:02:59.4]} 7... Kf8 {[%clk 0:02:58.4]} 8. a4 {[%clk
0:02:57.6]} 8... Qc7 {[%clk 0:02:56.4]} 9. Ba3 {[%clk 0:02:51]} 9... b6 {[%clk
0:02:56.6]} 10. h4 {[%clk 0:02:50]} 10... Ba6 {[%clk 0:02:55.5]} 11. Bxa6 {[%clk
0:02:49.9]} 11... Nxa6 {[%clk 0:02:56.4]} 12. Ne2 {[%clk 0:02:50]} 12... Rc8
{[%clk 0:02:54.9]} 13. h5 {[%clk 0:02:46.9]} 13... h6 {[%clk 0:02:54.8]} 14. Rh3
{[%clk 0:02:46.1]} 14... Kg8 {[%clk 0:02:48.9]} 15. Rg3 {[%clk 0:02:45.6]} 15...
Nf5 {[%clk 0:02:48.8]} 16. Rf3 {[%clk 0:02:46]} 16... cxd4 {[%clk 0:02:25.6]}
17. cxd4 {[%clk 0:02:37.6]} 17... Qc4 {[%clk 0:02:10.5]} 18. Rc3 {[%clk
0:02:26.8]} 18... Kh7 {[%clk 0:01:45]} 19. Rxc4 {[%clk 0:02:26]} 19... Rxc4
{[%clk 0:01:45.9]} 20. c3 {[%clk 0:02:25.1]} 20... Rhc8 {[%clk 0:01:44.7]} 21.
Qf3 {[%clk 0:02:19.1]} 21... Kh8 {[%clk 0:01:28.8]} 22. g4 {[%clk 0:02:18.8]}
22... Nh4 {[%clk 0:01:12.2]} 23. Qh3 {[%clk 0:02:11.2]} 23... g5 {[%clk
0:01:11.9]} 24. hxg6 {[%clk 0:02:11.1]} 24... Nxg6 {[%clk 0:01:10.6]} 25. Qxh6+
{[%clk 0:02:10.9]} 25... Kg8 {[%clk 0:01:10.4]} 26. Kd2 {[%clk 0:02:08.4]} 26...
Nb8 {[%clk 0:01:07.4]} 27. Rh1 {[%clk 0:02:07.9]} 27... Nc6 {[%clk 0:01:07.4]}
28. Qh7# {[%clk 0:02:06.6]} 1-0

[Event "Early-Titled-Tuesday-Blitz-March-26-2024"]
[Site "Chess.com"]
[Date "2024.03.26"]
[Round "8"]
[White "ajeale2"]
[Black "vladgoncharov"]
[Result "1-0"]
[WhiteElo "2448"]
[BlackElo "2588"]
[TimeControl "180+1"]
[EndTime "9:22:03 PDT"]
[Termination "ajeale2 won by resignation"]

1. e4 {[%clk 0:03:00.9]} 1... e6 {[%clk 0:02:56.2]} 2. d4 {[%clk 0:03:00.1]}
2... d5 {[%clk 0:02:55.9]} 3. Nd2 {[%clk 0:02:58.5]} 3... c5 {[%clk 0:02:54.4]}
4. exd5 {[%clk 0:02:57]} 4... Qxd5 {[%clk 0:02:54.1]} 5. Ngf3 {[%clk 0:02:57.6]}
5... cxd4 {[%clk 0:02:54]} 6. Bc4 {[%clk 0:02:58.2]} 6... Qd8 {[%clk 0:02:53.5]}
7. O-O {[%clk 0:02:58.9]} 7... Nc6 {[%clk 0:02:53.4]} 8. Nb3 {[%clk 0:02:59.3]}
8... Nf6 {[%clk 0:02:53.5]} 9. Nbxd4 {[%clk 0:02:57.9]} 9... Nxd4 {[%clk
0:02:53.2]} 10. Qxd4 {[%clk 0:02:58]} 10... Qxd4 {[%clk 0:02:50.1]} 11. Nxd4
{[%clk 0:02:58.6]} 11... a6 {[%clk 0:02:50.3]} 12. Be2 {[%clk 0:02:58.5]} 12...
Bd6 {[%clk 0:02:48]} 13. Rd1 {[%clk 0:02:54.7]} 13... Bc7 {[%clk 0:02:47.9]} 14.
Bf3 {[%clk 0:02:54.8]} 14... O-O {[%clk 0:02:45]} 15. Be3 {[%clk 0:02:51.6]}
15... Rb8 {[%clk 0:02:23.5]} 16. Nb3 {[%clk 0:02:51.2]} 16... e5 {[%clk
0:02:17.4]} 17. Ba7 {[%clk 0:02:47.4]} 17... Ra8 {[%clk 0:02:17.4]} 18. Bc5
{[%clk 0:02:47.5]} 18... Re8 {[%clk 0:02:17.2]} 19. Bd6 {[%clk 0:02:41.6]} 19...
Bd8 {[%clk 0:01:39.7]} 20. Bxe5 {[%clk 0:02:35.3]} 20... Ng4 {[%clk 0:01:31.9]}
21. Bg3 {[%clk 0:02:27.1]} 21... Ne5 {[%clk 0:01:29.2]} 22. Bxe5 {[%clk
0:02:24.2]} 22... Be7 {[%clk 0:01:21.4]} 23. Re1 {[%clk 0:02:20.8]} 23... a5
{[%clk 0:01:19.2]} 24. Bd6 {[%clk 0:02:17.7]} 24... Be6 {[%clk 0:01:19.4]} 25.
Bxe7 {[%clk 0:02:17.3]} 25... Rxe7 {[%clk 0:01:19.8]} 26. Nc5 {[%clk 0:02:17.1]}
26... Rb8 {[%clk 0:01:17.5]} 27. Nxe6 {[%clk 0:02:16.5]} 27... fxe6 {[%clk
0:01:17.8]} 28. Bd5 {[%clk 0:02:11.3]} 28... Kf7 {[%clk 0:01:17.9]} 29. Bb3
{[%clk 0:02:09.3]} 29... b5 {[%clk 0:01:16.5]} 30. a3 {[%clk 0:02:08.3]} 30...
a4 {[%clk 0:01:15.7]} 31. Ba2 {[%clk 0:02:04.2]} 31... Kf6 {[%clk 0:01:15.8]}
32. Re4 {[%clk 0:02:02.7]} 32... Rb6 {[%clk 0:01:15.6]} 33. Rae1 {[%clk
0:02:02.1]} 33... e5 {[%clk 0:01:16.1]} 34. f4 {[%clk 0:02:01.5]} 1-0

[Event "Early-Titled-Tuesday-Blitz-March-26-2024"]
[Site "Chess.com"]
[Date "2024.03.26"]
[Round "8"]
[White "ChristopherYoo"]
[Black "sokidze"]
[Result "1-0"]
[WhiteElo "2965"]
[BlackElo "2791"]
[TimeControl "180+1"]
[EndTime "9:22:15 PDT"]
[Termination "ChristopherYoo won by resignation"]

1. c4 {[%clk 0:03:00.9]} 1... e6 {[%clk 0:02:58.8]} 2. Nc3 {[%clk 0:02:55.3]}
2... d5 {[%clk 0:02:58.1]} 3. d4 {[%clk 0:02:56]} 3... a6 {[%clk 0:02:58.7]} 4.
cxd5 {[%clk 0:02:54.8]} 4... exd5 {[%clk 0:02:59.3]} 5. Nf3 {[%clk 0:02:55.4]}
5... Nf6 {[%clk 0:02:59.3]} 6. Bg5 {[%clk 0:02:56.1]} 6... Be6 {[%clk
0:02:59.8]} 7. Qb3 {[%clk 0:02:56.4]} 7... Nbd7 {[%clk 0:02:59]} 8. e3 {[%clk
0:02:56.9]} 8... b5 {[%clk 0:02:58.3]} 9. Qc2 {[%clk 0:02:51.3]} 9... h6 {[%clk
0:02:54.2]} 10. Bh4 {[%clk 0:02:50.4]} 10... c5 {[%clk 0:02:51.5]} 11. dxc5
{[%clk 0:02:50.2]} 11... Bxc5 {[%clk 0:02:51.6]} 12. Bd3 {[%clk 0:02:50.2]}
12... O-O {[%clk 0:02:49.9]} 13. O-O {[%clk 0:02:50.3]} 13... Rc8 {[%clk
0:02:50.4]} 14. Qd1 {[%clk 0:02:47.2]} 14... Be7 {[%clk 0:02:35.5]} 15. Nd4
{[%clk 0:02:46]} 15... Ne5 {[%clk 0:02:32.2]} 16. Nce2 {[%clk 0:02:42.3]} 16...
Nc4 {[%clk 0:01:44.4]} 17. b3 {[%clk 0:02:40.6]} 17... Nb2 {[%clk 0:01:42.8]}
18. Qb1 {[%clk 0:02:40.2]} 18... Nxd3 {[%clk 0:01:42.9]} 19. Qxd3 {[%clk
0:02:40]} 19... Qd7 {[%clk 0:01:41.7]} 20. Nf4 {[%clk 0:02:36.4]} 20... Ne4
{[%clk 0:01:16.4]} 21. Bxe7 {[%clk 0:02:35.1]} 21... Qxe7 {[%clk 0:01:17.3]} 22.
Ndxe6 {[%clk 0:02:35.5]} 22... fxe6 {[%clk 0:01:09.1]} 23. Ng6 {[%clk
0:02:34.4]} 23... Qg5 {[%clk 0:01:08.5]} 24. Nxf8 {[%clk 0:02:34.5]} 24... Rxf8
{[%clk 0:01:09.4]} 25. Rac1 {[%clk 0:02:33.2]} 25... Nf6 {[%clk 0:00:46.8]} 26.
Rc6 {[%clk 0:02:30.6]} 26... e5 {[%clk 0:00:42.8]} 27. Rxa6 {[%clk 0:02:29.6]}
27... e4 {[%clk 0:00:38.7]} 28. Qd4 {[%clk 0:02:28.7]} 28... Ng4 {[%clk
0:00:39.2]} 29. h3 {[%clk 0:02:28.9]} 29... Ne5 {[%clk 0:00:33.7]} 30. Qxd5+
{[%clk 0:02:27.9]} 30... Kh8 {[%clk 0:00:34.2]} 31. Qxe4 {[%clk 0:02:27.9]}
31... Nf3+ {[%clk 0:00:34.3]} 32. Kh1 {[%clk 0:02:27.8]} 32... Nd2 {[%clk
0:00:33.1]} 33. Qb4 {[%clk 0:02:26.7]} 1-0

[Event "Early-Titled-Tuesday-Blitz-March-26-2024"]
[Site "Chess.com"]
[Date "2024.03.26"]
[Round "8"]
[White "Coach_Istvanovszki"]
[Black "ActorXu"]
[Result "1/2-1/2"]
[WhiteElo "2572"]
[BlackElo "2852"]
[TimeControl "180+1"]
[EndTime "9:22:44 PDT"]
[Termination "Game drawn by agreement"]

1. d4 {[%clk 0:03:00.9]} 1... Nf6 {[%clk 0:02:58.1]} 2. Nc3 {[%clk 0:03:00.5]}
2... d5 {[%clk 0:02:57]} 3. Bf4 {[%clk 0:03:01.1]} 3... e6 {[%clk 0:02:55.8]} 4.
Nb5 {[%clk 0:03:00.7]} 4... Bb4+ {[%clk 0:02:56]} 5. c3 {[%clk 0:02:59.2]} 5...
Ba5 {[%clk 0:02:55.6]} 6. a4 {[%clk 0:03:00]} 6... a6 {[%clk 0:02:48.9]} 7. b4
{[%clk 0:03:00.5]} 7... Bxb4 {[%clk 0:02:48.1]} 8. cxb4 {[%clk 0:02:47.9]} 8...
axb5 {[%clk 0:02:47.9]} 9. axb5 {[%clk 0:02:48.8]} 9... Rxa1 {[%clk 0:02:48]}
10. Qxa1 {[%clk 0:02:49.7]} 10... Nh5 {[%clk 0:02:39.7]} 11. Be5 {[%clk
0:02:44.8]} 11... Nd7 {[%clk 0:02:31.7]} 12. Nf3 {[%clk 0:02:41.5]} 12... Nxe5
{[%clk 0:02:22.8]} 13. Nxe5 {[%clk 0:02:40.5]} 13... Nf6 {[%clk 0:02:16]} 14. e3
{[%clk 0:02:38.3]} 14... O-O {[%clk 0:02:14.6]} 15. Bd3 {[%clk 0:02:37.6]} 15...
Nd7 {[%clk 0:02:09.8]} 16. O-O {[%clk 0:02:28]} 16... Nxe5 {[%clk 0:02:09.7]}
17. dxe5 {[%clk 0:02:28.9]} 17... Bd7 {[%clk 0:02:09.7]} 18. Rc1 {[%clk
0:02:26.4]} 18... c6 {[%clk 0:02:09.4]} 19. bxc6 {[%clk 0:02:22.2]} 19... bxc6
{[%clk 0:02:09.6]} 20. Qa7 {[%clk 0:02:17.5]} 20... f6 {[%clk 0:01:50.4]} 21. b5
{[%clk 0:02:05]} 21... cxb5 {[%clk 0:01:08.1]} 22. Rc7 {[%clk 0:02:03.3]} 22...
Rf7 {[%clk 0:01:08.5]} 23. Bxb5 {[%clk 0:02:02.5]} 23... Be8 {[%clk 0:01:04.5]}
24. Rxf7 {[%clk 0:01:52.4]} 24... Bxf7 {[%clk 0:01:05.4]} 25. exf6 {[%clk
0:01:47.1]} 25... gxf6 {[%clk 0:01:06.3]} 26. Qd7 {[%clk 0:01:36.3]} 26... Qxd7
{[%clk 0:01:03.3]} 27. Bxd7 {[%clk 0:01:37.2]} 27... e5 {[%clk 0:00:58.9]} 28.
f4 {[%clk 0:01:37.1]} 28... Kg7 {[%clk 0:00:54.7]} 29. Kf2 {[%clk 0:01:37.3]}
29... Kg6 {[%clk 0:00:53.6]} 30. g4 {[%clk 0:01:33.2]} 1/2-1/2

[Event "Early-Titled-Tuesday-Blitz-March-26-2024"]
[Site "Chess.com"]
[Date "2024.03.26"]
[Round "8"]
[White "Zavgorodniy_Sergiy"]
[Black "Levanzovsky"]
[Result "1-0"]
[WhiteElo "2634"]
[BlackElo "2422"]
[TimeControl "180+1"]
[EndTime "9:22:53 PDT"]
[Termination "Zavgorodniy_Sergiy won by resignation"]

1. d4 {[%clk 0:03:00.9]} 1... Nf6 {[%clk 0:02:59.6]} 2. c4 {[%clk 0:03:01.2]}
2... Nc6 {[%clk 0:02:56.5]} 3. Nf3 {[%clk 0:03:01.3]} 3... d6 {[%clk 0:02:47.4]}
4. g3 {[%clk 0:03:01.2]} 4... Bg4 {[%clk 0:02:45.5]} 5. Bg2 {[%clk 0:03:00.9]}
5... Qc8 {[%clk 0:02:42.8]} 6. Nc3 {[%clk 0:02:57.8]} 6... Bh3 {[%clk
0:02:40.6]} 7. Bxh3 {[%clk 0:02:56.5]} 7... Qxh3 {[%clk 0:02:41.5]} 8. d5 {[%clk
0:02:54.3]} 8... Nd8 {[%clk 0:02:41.2]} 9. Qa4+ {[%clk 0:02:51.7]} 9... Qd7
{[%clk 0:02:39.2]} 10. Qc2 {[%clk 0:02:51.4]} 10... e5 {[%clk 0:02:30.6]} 11.
dxe6 {[%clk 0:02:49.8]} 11... Nxe6 {[%clk 0:02:26.5]} 12. O-O {[%clk 0:02:49.8]}
12... g6 {[%clk 0:02:09]} 13. b3 {[%clk 0:02:49.7]} 13... Bg7 {[%clk 0:02:08.7]}
14. Bb2 {[%clk 0:02:50.2]} 14... O-O {[%clk 0:02:09]} 15. Rac1 {[%clk
0:02:50.2]} 15... Nc5 {[%clk 0:02:07.5]} 16. Rfd1 {[%clk 0:02:48.3]} 16... Rfe8
{[%clk 0:02:06.7]} 17. Kg2 {[%clk 0:02:48.8]} 17... Re7 {[%clk 0:01:55]} 18. b4
{[%clk 0:02:48.2]} 18... Nce4 {[%clk 0:01:40.6]} 19. Nd5 {[%clk 0:02:48.3]}
19... Nxd5 {[%clk 0:01:35]} 20. cxd5 {[%clk 0:02:49.2]} 20... Bxb2 {[%clk
0:01:32.9]} 21. Qxb2 {[%clk 0:02:50.1]} 21... Rae8 {[%clk 0:01:33.1]} 22. Rc4
{[%clk 0:02:48]} 22... Nxf2 {[%clk 0:01:18.9]} 23. Kxf2 {[%clk 0:02:43.2]} 23...
Rxe2+ {[%clk 0:01:18.9]} 24. Qxe2 {[%clk 0:02:44.1]} 24... Rxe2+ {[%clk
0:01:18.9]} 25. Kxe2 {[%clk 0:02:45]} 25... Qb5 {[%clk 0:01:17.4]} 26. Rd4
{[%clk 0:02:40.4]} 26... Qa6 {[%clk 0:01:11.8]} 27. Nd2 {[%clk 0:02:35.9]} 27...
Qxa2 {[%clk 0:00:45.7]} 28. Rxc7 {[%clk 0:02:35.7]} 28... Qb2 {[%clk 0:00:29.6]}
29. Re4 {[%clk 0:02:31.8]} 29... Qa2 {[%clk 0:00:21.9]} 30. Ree7 {[%clk
0:02:29]} 30... Qxd5 {[%clk 0:00:20.8]} 31. Rxf7 {[%clk 0:02:29.2]} 31... Qxf7
{[%clk 0:00:17]} 32. Rxf7 {[%clk 0:02:30.1]} 32... Kxf7 {[%clk 0:00:17.7]} 33.
Kd3 {[%clk 0:02:30.1]} 33... Ke6 {[%clk 0:00:16.2]} 34. Kd4 {[%clk 0:02:29.5]}
34... a6 {[%clk 0:00:06.6]} 35. Nc4 {[%clk 0:02:25.5]} 35... b5 {[%clk
0:00:04.1]} 36. Ne3 {[%clk 0:02:23.3]} 1-0

[Event "Early-Titled-Tuesday-Blitz-March-26-2024"]
[Site "Chess.com"]
[Date "2024.03.26"]
[Round "8"]
[White "amanjazu"]
[Black "dealshark"]
[Result "1-0"]
[WhiteElo "2528"]
[BlackElo "2289"]
[TimeControl "180+1"]
[EndTime "9:23:00 PDT"]
[Termination "amanjazu won by resignation"]

1. e4 {[%clk 0:02:59.8]} 1... c5 {[%clk 0:03:00]} 2. d4 {[%clk 0:02:58.8]} 2...
cxd4 {[%clk 0:02:59.1]} 3. c3 {[%clk 0:02:59.1]} 3... d5 {[%clk 0:02:57.6]} 4.
Qxd4 {[%clk 0:02:39.6]} 4... Nc6 {[%clk 0:02:56.6]} 5. Qxd5 {[%clk 0:02:34.2]}
5... Nf6 {[%clk 0:02:55.1]} 6. Qxd8+ {[%clk 0:02:33.3]} 6... Kxd8 {[%clk
0:02:55.6]} 7. f3 {[%clk 0:02:28.7]} 7... e5 {[%clk 0:02:54.8]} 8. Bg5 {[%clk
0:02:26.4]} 8... Bc5 {[%clk 0:02:54.1]} 9. Nd2 {[%clk 0:02:25.1]} 9... Be6
{[%clk 0:02:51.4]} 10. O-O-O {[%clk 0:02:24.5]} 10... Kc7 {[%clk 0:02:51]} 11.
Bc4 {[%clk 0:02:21]} 11... h6 {[%clk 0:02:49.7]} 12. Bxf6 {[%clk 0:02:20.9]}
12... gxf6 {[%clk 0:02:50]} 13. Bxe6 {[%clk 0:02:17.2]} 13... fxe6 {[%clk
0:02:50.9]} 14. Kc2 {[%clk 0:02:12]} 14... h5 {[%clk 0:02:49.3]} 15. Ne2 {[%clk
0:02:10.9]} 15... h4 {[%clk 0:02:49.6]} 16. b4 {[%clk 0:02:07]} 16... Bb6 {[%clk
0:02:48]} 17. Nc4 {[%clk 0:02:04.4]} 17... h3 {[%clk 0:02:46.9]} 18. g3 {[%clk
0:02:02.4]} 18... a5 {[%clk 0:02:35.1]} 19. b5 {[%clk 0:01:59.5]} 19... Na7
{[%clk 0:02:29.5]} 20. a4 {[%clk 0:01:57.8]} 20... Bc5 {[%clk 0:02:28]} 21. f4
{[%clk 0:01:53]} 21... exf4 {[%clk 0:02:27]} 22. Nxf4 {[%clk 0:01:53.9]} 22...
Rae8 {[%clk 0:02:24.7]} 23. Rhf1 {[%clk 0:01:34]} 23... b6 {[%clk 0:02:23.1]}
24. Ng6 {[%clk 0:01:19.2]} 24... Rh6 {[%clk 0:02:22.9]} 25. Rxf6 {[%clk
0:01:18.6]} 25... Be7 {[%clk 0:02:22.5]} 26. Rxe6 {[%clk 0:01:16.2]} 26... Nc8
{[%clk 0:02:16.7]} 27. Nf4 {[%clk 0:01:06.5]} 27... Rxe6 {[%clk 0:02:15.5]} 28.
Nxe6+ {[%clk 0:01:07.4]} 28... Kb7 {[%clk 0:02:14.2]} 29. Rd7+ {[%clk
0:01:06.9]} 29... Kb8 {[%clk 0:02:14.3]} 30. Nc7 {[%clk 0:01:03.6]} 30... Rf8
{[%clk 0:02:12]} 31. Na6+ {[%clk 0:01:00.2]} 31... Ka8 {[%clk 0:02:10.6]} 32.
Nc7+ {[%clk 0:00:57.7]} 32... Kb8 {[%clk 0:02:10.6]} 33. Na6+ {[%clk 0:00:57.3]}
33... Ka8 {[%clk 0:02:10.8]} 34. Kb3 {[%clk 0:00:45.5]} 34... Rf2 {[%clk
0:02:05.6]} 35. Rc7 {[%clk 0:00:42.9]} 35... Rf8 {[%clk 0:01:53.2]} 36. Rxc8+
{[%clk 0:00:40.4]} 1-0

[Event "Early-Titled-Tuesday-Blitz-March-26-2024"]
[Site "Chess.com"]
[Date "2024.03.26"]
[Round "8"]
[White "Felix-Rose"]
[Black "Chess_Gainz"]
[Result "1-0"]
[WhiteElo "2252"]
[BlackElo "2541"]
[TimeControl "180+1"]
[EndTime "9:23:01 PDT"]
[Termination "Felix-Rose won by resignation"]

1. e4 {[%clk 0:03:00.2]} 1... d6 {[%clk 0:02:59.6]} 2. d4 {[%clk 0:03:00.5]}
2... Nf6 {[%clk 0:03:00.2]} 3. Nc3 {[%clk 0:03:00.9]} 3... Nbd7 {[%clk
0:03:00.8]} 4. g4 {[%clk 0:02:59.1]} 4... h6 {[%clk 0:03:00.6]} 5. Bg2 {[%clk
0:02:54.7]} 5... e5 {[%clk 0:03:00.8]} 6. Nge2 {[%clk 0:02:54.6]} 6... Nxg4
{[%clk 0:03:01.2]} 7. f4 {[%clk 0:02:51.9]} 7... Qh4+ {[%clk 0:02:54]} 8. Ng3
{[%clk 0:02:52]} 8... Nxh2 {[%clk 0:02:22.1]} 9. Ne2 {[%clk 0:02:42.8]} 9...
exf4 {[%clk 0:02:21.2]} 10. Bxf4 {[%clk 0:02:42.1]} 10... g5 {[%clk 0:02:02.6]}
11. Be3 {[%clk 0:02:40.1]} 11... Nf6 {[%clk 0:02:02.3]} 12. Bf2 {[%clk
0:02:37.8]} 12... Nfg4 {[%clk 0:02:02.1]} 13. Qd2 {[%clk 0:02:19.3]} 13... Nxf2
{[%clk 0:02:01.9]} 14. Kxf2 {[%clk 0:02:18.2]} 14... Bg7 {[%clk 0:01:11.7]} 15.
Rxh2 {[%clk 0:02:16.3]} 15... Qg4 {[%clk 0:01:08.4]} 16. Bh3 {[%clk 0:01:56]}
16... Qxh3 {[%clk 0:01:05.1]} 17. Rxh3 {[%clk 0:01:55.6]} 17... Bxh3 {[%clk
0:01:06]} 18. Rh1 {[%clk 0:01:53.6]} 18... Bg4 {[%clk 0:01:05.4]} 19. Nf5 {[%clk
0:01:53.2]} 19... Bxf5 {[%clk 0:01:05.7]} 20. exf5 {[%clk 0:01:53.6]} 20...
O-O-O {[%clk 0:01:06.6]} 21. Qd3 {[%clk 0:01:49.5]} 21... Kb8 {[%clk 0:01:02.7]}
22. c3 {[%clk 0:01:48.1]} 22... h5 {[%clk 0:01:03]} 23. Ng3 {[%clk 0:01:47.7]}
23... h4 {[%clk 0:00:54.5]} 24. Ne4 {[%clk 0:01:48.1]} 24... Bh6 {[%clk
0:00:50.3]} 25. d5 {[%clk 0:01:45.3]} 25... Rde8 {[%clk 0:00:48.8]} 26. Nf6
{[%clk 0:01:43.8]} 26... Re7 {[%clk 0:00:47.4]} 27. Ng4 {[%clk 0:01:43.9]} 27...
Bf8 {[%clk 0:00:43]} 28. f6 {[%clk 0:01:43.4]} 28... Re8 {[%clk 0:00:41.7]} 29.
Qb5 {[%clk 0:01:43]} 29... Rd8 {[%clk 0:00:40.2]} 30. Re1 {[%clk 0:01:41.1]}
30... h3 {[%clk 0:00:36.8]} 31. Re8 {[%clk 0:01:39.1]} 31... Bh6 {[%clk
0:00:36.4]} 32. Rxd8+ {[%clk 0:01:37.6]} 32... Rxd8 {[%clk 0:00:37.3]} 1-0

[Event "Early-Titled-Tuesday-Blitz-March-26-2024"]
[Site "Chess.com"]
[Date "2024.03.26"]
[Round "8"]
[White "AlmasRakhmatullaev"]
[Black "DreamsAreFake"]
[Result "1-0"]
[WhiteElo "2914"]
[BlackElo "2756"]
[TimeControl "180+1"]
[EndTime "9:23:17 PDT"]
[Termination "AlmasRakhmatullaev won by resignation"]

1. e4 {[%clk 0:03:00.9]} 1... c6 {[%clk 0:02:57.8]} 2. Qe2 {[%clk 0:02:36.3]}
2... e5 {[%clk 0:02:51.8]} 3. Nf3 {[%clk 0:02:28.5]} 3... d6 {[%clk 0:02:51.7]}
4. d4 {[%clk 0:02:28.6]} 4... Nd7 {[%clk 0:02:49.7]} 5. Nc3 {[%clk 0:02:28.4]}
5... Ngf6 {[%clk 0:02:48.8]} 6. Bg5 {[%clk 0:02:27]} 6... Be7 {[%clk 0:02:47.8]}
7. O-O-O {[%clk 0:02:27.3]} 7... Qc7 {[%clk 0:02:46.2]} 8. h3 {[%clk 0:02:25.2]}
8... Nf8 {[%clk 0:02:34.2]} 9. Bh4 {[%clk 0:02:17.3]} 9... Ng6 {[%clk
0:02:31.4]} 10. Bg3 {[%clk 0:02:17.3]} 10... Nh5 {[%clk 0:02:30.7]} 11. Bh2
{[%clk 0:02:16.4]} 11... Nhf4 {[%clk 0:02:28]} 12. Qe1 {[%clk 0:02:16.3]} 12...
O-O {[%clk 0:02:24]} 13. Kb1 {[%clk 0:02:08.9]} 13... b5 {[%clk 0:02:20.8]} 14.
g3 {[%clk 0:01:57.6]} 14... Nxh3 {[%clk 0:02:15.7]} 15. Qe3 {[%clk 0:01:56.2]}
15... h6 {[%clk 0:02:13.6]} 16. Ne2 {[%clk 0:01:53.3]} 16... a5 {[%clk
0:01:51.2]} 17. Nh4 {[%clk 0:01:49.4]} 17... Nxh4 {[%clk 0:01:44.6]} 18. gxh4
{[%clk 0:01:47.4]} 18... Nf4 {[%clk 0:01:29.7]} 19. Nxf4 {[%clk 0:01:47.4]}
19... exf4 {[%clk 0:01:30]} 20. Bxf4 {[%clk 0:01:48.3]} 20... Kh8 {[%clk
0:01:25.3]} 21. Bxh6 {[%clk 0:01:46.9]} 21... Rg8 {[%clk 0:01:22.9]} 22. Rg1
{[%clk 0:01:42.4]} 22... Bf6 {[%clk 0:01:17.9]} 23. Bd3 {[%clk 0:01:32.2]} 23...
Qe7 {[%clk 0:01:10.3]} 24. Rg3 {[%clk 0:01:21.8]} 24... Be6 {[%clk 0:01:09]} 25.
Rdg1 {[%clk 0:01:17.9]} 25... g6 {[%clk 0:01:02.7]} 26. e5 {[%clk 0:01:13.4]}
26... dxe5 {[%clk 0:00:55.1]} 27. dxe5 {[%clk 0:01:14.3]} 27... Bg7 {[%clk
0:00:55.8]} 28. h5 {[%clk 0:01:08.6]} 28... gxh5 {[%clk 0:00:43.9]} 29. Bxg7+
{[%clk 0:01:08.1]} 1-0

[Event "Early-Titled-Tuesday-Blitz-March-26-2024"]
[Site "Chess.com"]
[Date "2024.03.26"]
[Round "8"]
[White "Igor_Lysyj"]
[Black "Msb2"]
[Result "0-1"]
[WhiteElo "2855"]
[BlackElo "3044"]
[TimeControl "180+1"]
[EndTime "9:23:24 PDT"]
[Termination "Msb2 won by resignation"]

1. d4 {[%clk 0:02:59.8]} 1... d5 {[%clk 0:03:00]} 2. c4 {[%clk 0:02:59.6]} 2...
e6 {[%clk 0:03:00.7]} 3. Nf3 {[%clk 0:02:59.5]} 3... Nf6 {[%clk 0:03:01.1]} 4.
g3 {[%clk 0:02:59.8]} 4... Nc6 {[%clk 0:03:01.7]} 5. Bg2 {[%clk 0:02:59.4]} 5...
Bd6 {[%clk 0:03:02.4]} 6. O-O {[%clk 0:02:57.2]} 6... O-O {[%clk 0:03:03]} 7.
Nbd2 {[%clk 0:02:49.1]} 7... a5 {[%clk 0:03:02.7]} 8. b3 {[%clk 0:02:47.1]} 8...
a4 {[%clk 0:02:57.9]} 9. Bb2 {[%clk 0:02:47.3]} 9... a3 {[%clk 0:02:58.4]} 10.
Bc3 {[%clk 0:02:47.7]} 10... Bb4 {[%clk 0:02:58.9]} 11. Qc2 {[%clk 0:02:45.1]}
11... Bxc3 {[%clk 0:02:59.3]} 12. Qxc3 {[%clk 0:02:45.6]} 12... Ne4 {[%clk
0:03:00]} 13. Qe3 {[%clk 0:02:41]} 13... f5 {[%clk 0:02:59.3]} 14. Rfc1 {[%clk
0:02:30.9]} 14... Qf6 {[%clk 0:02:56.2]} 15. cxd5 {[%clk 0:02:10.1]} 15... exd5
{[%clk 0:02:57.1]} 16. b4 {[%clk 0:02:09.2]} 16... Nxb4 {[%clk 0:02:32.5]} 17.
Rxc7 {[%clk 0:01:20.5]} 17... Qd6 {[%clk 0:02:21.8]} 18. Qf4 {[%clk 0:01:14.8]}
18... Qxf4 {[%clk 0:02:08.2]} 19. gxf4 {[%clk 0:01:14.7]} 19... Rf7 {[%clk
0:02:08.9]} 20. Rcc1 {[%clk 0:01:04.1]} 20... Rf6 {[%clk 0:01:45]} 21. Nb3
{[%clk 0:00:45.5]} 21... Rc6 {[%clk 0:01:43.5]} 22. Rxc6 {[%clk 0:00:43.5]}
22... bxc6 {[%clk 0:01:44.4]} 23. Ne1 {[%clk 0:00:38.9]} 23... Ba6 {[%clk
0:01:42.5]} 24. Bxe4 {[%clk 0:00:25.5]} 24... fxe4 {[%clk 0:01:40.4]} 25. e3
{[%clk 0:00:20.2]} 25... Bc4 {[%clk 0:01:40.6]} 26. Nd2 {[%clk 0:00:20.1]} 26...
Bxa2 {[%clk 0:01:36.9]} 27. f3 {[%clk 0:00:20.2]} 27... exf3 {[%clk 0:01:29.7]}
28. Kf2 {[%clk 0:00:20.3]} 28... Bc4 {[%clk 0:01:26.8]} 29. Kxf3 {[%clk
0:00:18.2]} 29... a2 {[%clk 0:01:25.7]} 0-1